fUST/lending_fUST_20240224
["ID","MTS","AMOUNT","RATE_DAILY","PERIOD"]
[315042274,1708762231831,-165.5089538,0.00019078,2]
[315042276,1708762231839,-181.46236333,0.00019078,2]
[315042278,1708762231849,-165.50895379,0.00019147,2]
[315042280,1708762231857,-649.67,0.00019168,3]
[315042298,1708762231987,-155.21411324,0.00019177,2]
[315042299,1708762231997,-500.0,0.00019178,2]
[315042300,1708762232006,-500.0,0.00019178,2]
[315042301,1708762232015,-287.69325994,0.00019178,2]
[315042302,1708762232024,-590.73,0.00019178,2]
[315042303,1708762232034,-500.0,0.00019178,2]
[315042304,1708762232043,-308.39458233,0.00019178,2]
[315042305,1708762232052,-500.0,0.00019178,2]
[315042306,1708762232061,-500.0,0.00019178,2]
[315042307,1708762232070,-432.56503365,0.00019178,2]
[315042308,1708762232079,-500.0,0.00019178,2]
[315042309,1708762232088,-500.0,0.00019178,2]
[315042310,1708762232097,-540.74051139,0.00019178,2]
[315042311,1708762232106,-500.0,0.00019178,2]
[315042312,1708762232116,-500.0,0.00019178,2]
[315042313,1708762232125,-1170.22,0.00019178,2]
[315042314,1708762232134,-500.0,0.00019178,2]
[315042315,1708762232144,-500.86160796,0.00019178,2]
[315042316,1708762232154,-501.15891144,0.00019178,2]
[315042317,1708762232163,-467.71514,0.00019178,2]
[315042318,1708762232172,-500.0,0.00019178,2]
[315042319,1708762232182,-500.0,0.00019178,2]
[315042320,1708762232191,-46.07808575,0.00019178,2]
[315042340,1708762238634,-453.92191425,0.00019178,2]
[315042341,1708762238644,-500.0,0.00019178,2]
[315042342,1708762238653,-500.0,0.00019178,2]
[315042343,1708762238662,-501.29706972,0.00019178,2]
[315042345,1708762238671,-1910.67,0.00019178,2]
[315042346,1708762238680,-500.0,0.00019178,2]
[315042347,1708762238690,-550.86,0.00019178,2]
[315042348,1708762238698,-890.27,0.00019178,2]
[315042349,1708762238708,-1691.48,0.00019178,2]
[315042350,1708762238717,-500.0,0.00019178,2]
[315042351,1708762238726,-500.0,0.00019178,2]
[315042352,1708762238735,-500.61188878,0.00019178,2]
[315042353,1708762238744,-500.0,0.00019178,2]
[315042354,1708762238753,-500.74753847,0.00019178,2]
[315042355,1708762238762,-500.0,0.00019178,2]
[315042356,1708762238771,-891.18,0.00019178,2]
[315042357,1708762238781,-500.0,0.00019178,2]
[315042358,1708762238790,-551.53581837,0.00019178,2]
[315042359,1708762238799,-501.33966473,0.00019178,2]
[315042360,1708762238809,-500.0,0.00019178,2]
[315042361,1708762238818,-501.06561376,0.00019178,2]
[315042362,1708762238827,-584.1010211,0.00019178,2]
[315042363,1708762238836,-501.80769247,0.00019178,2]
[315042364,1708762238846,-500.0,0.00019178,2]
[315042365,1708762238855,-1309.75,0.00019178,2]
[315042366,1708762238864,-503.02160777,0.00019178,2]
[315042367,1708762238873,-501.11759681,0.00019178,2]
[315042368,1708762238882,-151.48714558,0.00019178,2]
[315042369,1708762238891,-501.73083956,0.00019178,2]
[315042370,1708762238901,-500.0,0.00019178,2]
[315042371,1708762238910,-1442.32,0.00019178,2]
[315042372,1708762238919,-500.0,0.00019178,2]
[315042373,1708762238928,-500.0,0.00019178,2]
[315042374,1708762238937,-500.0,0.00019178,2]
[315042375,1708762238946,-787.05,0.00019178,2]
[315042376,1708762238955,-438.21934706,0.00019178,2]
[315042377,1708762238964,-640.81,0.00019178,2]
[315042378,1708762238973,-567.53385106,0.00019178,2]
[315042379,1708762238982,-9289.46,0.00019178,2]
[315042380,1708762238990,-500.0,0.00019178,2]
[315042381,1708762238999,-1187.64,0.00019178,2]
[315042382,1708762239009,-500.0,0.00019178,2]
[315042383,1708762239018,-502.22848927,0.00019178,2]
[315042384,1708762239027,-500.0,0.00019178,2]
[315042385,1708762239036,-525.65,0.00019178,2]
[315042386,1708762239045,-500.0,0.00019178,2]
[315042387,1708762239054,-501.95237073,0.00019178,2]
[315042388,1708762239063,-500.0,0.00019178,2]
[315042389,1708762239072,-665.03,0.00019178,2]
[315042390,1708762239081,-9720.84,0.00019178,2]
[315042391,1708762239090,-380.90353411,0.00019178,2]
[315042392,1708762239099,-5698.32,0.00019178,2]
[315042393,1708762239108,-500.0,0.00019178,2]
[315042394,1708762239117,-500.0,0.00019178,2]
[315042395,1708762239127,-902.79,0.00019178,2]
[315042396,1708762239136,-1958.62,0.00019178,2]
[315042397,1708762239148,-615.60668137,0.00019178,2]
[315042398,1708762239157,-886.1,0.00019178,2]
[315042399,1708762239166,-500.0,0.00019178,2]
[315042400,1708762239175,-2566.62,0.00019178,2]
[315042401,1708762239185,-3979.55,0.00019178,2]
[315042402,1708762239194,-504.15685521,0.00019178,2]
[315042403,1708762239204,-1425.81,0.00019178,2]
[315042404,1708762239213,-500.0,0.00019178,2]
[315042405,1708762239222,-1421.81,0.00019178,2]
[315042406,1708762239232,-1147.6,0.00019178,2]
[315042407,1708762239241,-500.9669518,0.00019178,2]
[315042408,1708762239250,-1164.81,0.00019178,2]
[315042409,1708762239259,-1011.88,0.00019178,2]
[315042410,1708762239268,-646.60151528,0.00019178,2]
[315042411,1708762239278,-2081.24,0.00019178,2]
[315042412,1708762239286,-289.03746674,0.00019178,2]
[315042413,1708762239295,-963.87,0.00019178,2]
[315042414,1708762239304,-500.0,0.00019178,2]
[315042415,1708762239314,-166.666666,0.00019178,2]
[315042416,1708762239323,-165.50895379,0.00019215,2]
[315042417,1708762239337,-500.0,0.00019241,2]
[315042418,1708762239349,-500.0,0.00019241,2]
[315042419,1708762239361,-483.69945852,0.00019241,2]
[315042420,1708762239373,-500.0,0.00019251,2]
[315042421,1708762239386,-629.66397595,0.00019251,2]
[315042422,1708762239398,-500.0,0.00019251,2]
[315042423,1708762239408,-500.0,0.00019251,2]
[315042424,1708762239418,-500.0,0.00019251,2]
[315042425,1708762239428,-500.0,0.00019251,2]
[315042426,1708762239440,-500.0,0.00019251,2]
[315042427,1708762239451,-25425.34974649,0.00019252,2]
[315042428,1708762239462,-165.50895379,0.00019284,2]
[315042429,1708762239473,-165.50895379,0.00019352,2]
[315042430,1708762239484,-175.0,0.000194,2]
[315042431,1708762239496,-295.0,0.000194,2]
[315042432,1708762239508,-590.73,0.00019452,2]
[315042433,1708762239520,-500.0,0.00019452,2]
[315042434,1708762239530,-500.0,0.00019452,2]
[315042435,1708762239541,-500.0,0.00019452,2]
[315042436,1708762239552,-500.0,0.00019452,2]
[315042437,1708762239562,-1170.22,0.00019452,2]
[315042438,1708762239572,-500.0,0.00019452,2]
[315042439,1708762239582,-500.0,0.00019452,2]
[315042440,1708762239593,-500.0,0.00019452,2]
[315042441,1708762239603,-1910.67,0.00019452,2]
[315042442,1708762239614,-500.0,0.00019452,2]
[315042443,1708762239625,-550.86,0.00019452,2]
[315042444,1708762239636,-890.27,0.00019452,2]
[315042445,1708762239647,-1691.48,0.00019452,2]
[315042446,1708762239657,-500.0,0.00019452,2]
[315042447,1708762239668,-500.0,0.00019452,2]
[315042448,1708762239679,-502.27376554,0.00019452,2]
[315042449,1708762239690,-891.18,0.00019452,2]
[315042450,1708762239701,-500.0,0.00019452,2]
[315042451,1708762239712,-1309.75,0.00019452,2]
[315042452,1708762239723,-500.0,0.00019452,2]
[315042453,1708762239733,-1442.32,0.00019452,2]
[315042454,1708762239743,-500.0,0.00019452,2]
[315042455,1708762239752,-500.0,0.00019452,2]
[315042456,1708762239765,-787.05,0.00019452,2]
[315042457,1708762239776,-640.81,0.00019452,2]
[315042458,1708762239787,-9289.46,0.00019452,2]
[315042459,1708762239798,-1187.64,0.00019452,2]
[315042460,1708762239808,-500.0,0.00019452,2]
[315042461,1708762239820,-500.0,0.00019452,2]
[315042462,1708762239830,-525.65,0.00019452,2]
[315042463,1708762239840,-500.0,0.00019452,2]
[315042464,1708762239850,-665.03,0.00019452,2]
[315042465,1708762239860,-9720.84,0.00019452,2]
[315042466,1708762239871,-5698.32,0.00019452,2]
[315042467,1708762239882,-500.0,0.00019452,2]
[315042468,1708762239894,-500.0,0.00019452,2]
[315042469,1708762239904,-902.79,0.00019452,2]
[315042470,1708762239915,-1958.62,0.00019452,2]
[315042471,1708762239927,-886.1,0.00019452,2]
[315042472,1708762239938,-500.0,0.00019452,2]
[315042473,1708762239949,-2566.62,0.00019452,2]
[315042474,1708762239961,-3979.55,0.00019452,2]
[315042476,1708762239972,-1425.81,0.00019452,2]
[315042478,1708762239983,-500.0,0.00019452,2]
[315042480,1708762239995,-1421.81,0.00019452,2]
[315042482,1708762240005,-1147.6,0.00019452,2]
[315042483,1708762240015,-1164.81,0.00019452,2]
[315042484,1708762240025,-1011.88,0.00019452,2]
[315042487,1708762240035,-2081.24,0.00019452,2]
[315042489,1708762240045,-963.87,0.00019452,2]
[315042491,1708762240054,-179.84917799,0.00019452,2]
[315042493,1708762240065,-2961.40277007,0.00019474,2]
[315042494,1708762240075,-2961.40277007,0.0001948,2]
[315042495,1708762240086,-205.88902431,0.00019483,2]
[315042496,1708762240098,-205.88902431,0.00019487,2]
[315042497,1708762240108,-2961.40277007,0.00019488,2]
[315042498,1708762240118,-205.88902431,0.00019491,2]
[315042499,1708762240128,-166.666666,0.00019627,2]
[315042500,1708762240141,-155.31979024,0.000197,2]
[315042501,1708762240153,-155.31979024,0.000197,2]
[315042502,1708762240165,-155.31979024,0.000197,2]
[315042503,1708762240175,-2234.04068617,0.000197,2]
[315042504,1708762240185,-2234.04068617,0.000197,2]
[315042505,1708762240195,-2234.04068617,0.000197,2]
[315042506,1708762240206,-590.73,0.00019726,2]
[315042507,1708762240216,-500.0,0.00019726,2]
[315042508,1708762240228,-500.0,0.00019726,2]
[315042509,1708762240238,-500.0,0.00019726,2]
[315042510,1708762240249,-1170.22,0.00019726,2]
[315042511,1708762240260,-500.0,0.00019726,2]
[315042512,1708762240270,-500.0,0.00019726,2]
[315042513,1708762240280,-1910.67,0.00019726,2]
[315042514,1708762240291,-550.86,0.00019726,2]
[315042515,1708762240301,-890.27,0.00019726,2]
[315042516,1708762240312,-1691.48,0.00019726,2]
[315042517,1708762240322,-500.0,0.00019726,2]
[315042518,1708762240334,-891.18,0.00019726,2]
[315042519,1708762240344,-500.0,0.00019726,2]
[315042520,1708762240355,-1309.75,0.00019726,2]
[315042521,1708762240365,-165.62,0.00019726,2]
[315042522,1708762240376,-1442.32,0.00019726,2]
[315042523,1708762240387,-500.0,0.00019726,2]
[315042524,1708762240397,-787.05,0.00019726,2]
[315042525,1708762240408,-640.81,0.00019726,2]
[315042526,1708762240418,-9289.46,0.00019726,2]
[315042527,1708762240428,-1187.64,0.00019726,2]
[315042528,1708762240439,-500.0,0.00019726,2]
[315042529,1708762240449,-500.0,0.00019726,2]
[315042530,1708762240460,-525.65,0.00019726,2]
[315042531,1708762240470,-665.03,0.00019726,2]
[315042532,1708762240480,-9720.84,0.00019726,2]
[315042533,1708762240492,-5698.32,0.00019726,2]
[315042534,1708762240503,-500.0,0.00019726,2]
[315042535,1708762240513,-500.0,0.00019726,2]
[315042536,1708762240523,-902.79,0.00019726,2]
[315042537,1708762240533,-1958.62,0.00019726,2]
[315042538,1708762240543,-886.1,0.00019726,2]
[315042539,1708762240553,-500.0,0.00019726,2]
[315042540,1708762240563,-2566.62,0.00019726,2]
[315042541,1708762240573,-3979.55,0.00019726,2]
[315042542,1708762240583,-1425.81,0.00019726,2]
[315042543,1708762240594,-500.0,0.00019726,2]
[315042544,1708762240604,-1421.81,0.00019726,2]
[315042545,1708762240614,-1147.6,0.00019726,2]
[315042546,1708762240624,-1164.81,0.00019726,2]
[315042547,1708762240634,-1011.88,0.00019726,2]
[315042548,1708762240644,-2081.24,0.00019726,2]
[315042550,1708762240654,-963.87,0.00019726,2]
[315042551,1708762240664,-2908.09529323,0.000199,2]
[315042553,1708762240674,-155.97763514,0.00019999,2]
[315042554,1708762240684,-220.72841357,0.00019999,2]
[315042555,1708762240694,-500.0,0.00019999,2]
[315042556,1708762240704,-500.0,0.00019999,2]
[315042557,1708762240714,-185.40149345,0.00019999,2]
[315042558,1708762240725,-500.0,0.00019999,2]
[315042559,1708762240735,-500.0,0.00019999,2]
[315042560,1708762240745,-500.0,0.00019999,2]
[315042561,1708762240756,-500.0,0.00019999,2]
[315042562,1708762240766,-500.0,0.00019999,2]
[315042567,1708762240904,-338.2446078,0.00019999,2]
[315042570,1708762240919,-500.0,0.00019999,2]
[315042572,1708762240929,-500.0,0.00019999,2]
[315042574,1708762240938,-500.0,0.00019999,2]
[315042576,1708762240947,-204.70126344,0.00019999,2]
[315042578,1708762240957,-512512.87467416,0.0002,2]
[315042580,1708762240966,-151.0,0.0002,2]
[315042581,1708762240975,-169.69108004,0.0002,2]
[315042584,1708762240985,-191.09197463,0.0002,2]
[315042586,1708762240994,-590.73,0.0002,2]
[315042587,1708762241003,-500.0,0.0002,2]
[315042589,1708762241013,-500.0,0.0002,2]
[315042591,1708762241022,-1170.22,0.0002,2]
[315042594,1708762241032,-500.0,0.0002,2]
[315042596,1708762241042,-500.0,0.0002,2]
[315042597,1708762241051,-1910.67,0.0002,2]
[315042599,1708762241060,-550.86,0.0002,2]
[315042601,1708762241069,-890.27,0.0002,2]
[315042603,1708762241079,-1691.48,0.0002,2]
[315042605,1708762241088,-538.43455682,0.0002,2]
[315042607,1708762241096,-891.18,0.0002,2]
[315042609,1708762241106,-471.82,0.0002,2]
[315042611,1708762241115,-1309.75,0.0002,2]
[315042613,1708762241123,-1442.32,0.0002,2]
[315042615,1708762241133,-500.0,0.0002,2]
[315042617,1708762241143,-787.05,0.0002,2]
[315042620,1708762241156,-3936.88109746,0.0002,2]
[315042621,1708762241165,-640.81,0.0002,2]
[315042623,1708762241175,-9289.46,0.0002,2]
[315042625,1708762241184,-1187.64,0.0002,2]
[315042628,1708762241194,-500.0,0.0002,2]
[315042630,1708762241203,-500.0,0.0002,2]
[315042632,1708762241212,-151.53182002,0.0002,2]
[315042634,1708762241222,-525.65,0.0002,2]
[315042635,1708762241231,-665.03,0.0002,2]
[315042637,1708762241242,-9720.84,0.0002,2]
[315042639,1708762241251,-5698.32,0.0002,2]
[315042641,1708762241260,-500.0,0.0002,2]
[315042643,1708762241269,-902.79,0.0002,2]
[315042645,1708762241278,-1958.62,0.0002,2]
[315042647,1708762241287,-886.1,0.0002,2]
[315042649,1708762241296,-500.0,0.0002,2]
[315042651,1708762241305,-2566.62,0.0002,2]
[315042653,1708762241315,-3979.55,0.0002,2]
[315042655,1708762241324,-1425.81,0.0002,2]
[315042656,1708762241333,-150.20157181,0.0002,2]
[315042658,1708762241343,-1421.81,0.0002,2]
[315042660,1708762241352,-987.0,0.0002,4]
[315042661,1708762241362,-1147.6,0.0002,2]
[315042662,1708762241371,-567.0,0.0002,4]
[315042663,1708762241380,-1164.81,0.0002,2]
[315042664,1708762241390,-1011.88,0.0002,2]
[315042665,1708762241399,-2081.24,0.0002,2]
[315042666,1708762241408,-792.64185061,0.0002,4]
[315042667,1708762241417,-963.87,0.0002,2]
[315042668,1708762241426,-185.760894,0.0002004,2]
[315042669,1708762241436,-222.913073,0.0002004,2]
[315042670,1708762241445,-363.435186,0.0002004,2]
[315042671,1708762241454,-165.207694,0.0002004,2]
[315042672,1708762241463,-169.841062,0.0002004,2]
[315042673,1708762241472,-152.693571,0.0002004,2]
[315042674,1708762241480,-168.992843,0.0002004,2]
[315042675,1708762241491,-152.514636,0.0002004,2]
[315042676,1708762241500,-50000.0,0.00020045,2]
[315042677,1708762241509,-50000.0,0.00020046,2]
[315042678,1708762241519,-166.666666,0.00020076,2]
[315042679,1708762241528,-50000.0,0.00020107,2]
[315042680,1708762241538,-50000.0,0.00020108,2]
[315042681,1708762241548,-50000.0,0.00020111,2]
[315042682,1708762241557,-50000.0,0.00020172,2]
[315042683,1708762241567,-50000.0,0.00020213,2]
[315042684,1708762241576,-50000.0,0.00020228,2]
[315042685,1708762241586,-50000.0,0.00020251,2]
[315042686,1708762241595,-156.4031808,0.0002026,10]
[315042687,1708762241605,-300.0,0.00020262,2]
[315042688,1708762241615,-590.73,0.00020273,2]
[315042689,1708762241624,-500.0,0.00020273,2]
[315042690,1708762241633,-500.0,0.00020273,2]
[315042691,1708762241645,-1170.22,0.00020273,2]
[315042692,1708762241654,-582.62545496,0.00020273,2]
[315042693,1708762241663,-1910.67,0.00020273,2]
[315042694,1708762241672,-550.86,0.00020273,2]
[315042695,1708762241681,-890.27,0.00020273,2]
[315042696,1708762241690,-1691.48,0.00020273,2]
[315042697,1708762241699,-891.18,0.00020273,2]
[315042698,1708762241708,-1309.75,0.00020273,2]
[315042699,1708762241717,-1442.32,0.00020273,2]
[315042700,1708762241726,-500.0,0.00020273,2]
[315042701,1708762241735,-787.05,0.00020273,2]
[315042702,1708762241744,-640.81,0.00020273,2]
[315042703,1708762241753,-9289.46,0.00020273,2]
[315042704,1708762241762,-1187.64,0.00020273,2]
[315042705,1708762241771,-500.0,0.00020273,2]
[315042706,1708762241780,-500.0,0.00020273,2]
[315042707,1708762241790,-525.65,0.00020273,2]
[315042708,1708762241799,-665.03,0.00020273,2]
[315042709,1708762241808,-9720.84,0.00020273,2]
[315042710,1708762241817,-5698.32,0.00020273,2]
[315042711,1708762241828,-500.0,0.00020273,2]
[315042712,1708762241836,-902.79,0.00020273,2]
[315042713,1708762241847,-1958.62,0.00020273,2]
[315042714,1708762241856,-886.1,0.00020273,2]
[315042715,1708762241865,-500.0,0.00020273,2]
[315042716,1708762241874,-2566.62,0.00020273,2]
[315042717,1708762241883,-3979.55,0.00020273,2]
[315042718,1708762241892,-1425.81,0.00020273,2]
[315042719,1708762241901,-1421.81,0.00020273,2]
[315042720,1708762241910,-1147.6,0.00020273,2]
[315042721,1708762241920,-1164.81,0.00020273,2]
[315042722,1708762241929,-1011.88,0.00020273,2]
[315042723,1708762241938,-2081.24,0.00020273,2]
[315042724,1708762241947,-963.87,0.00020273,2]
[315042725,1708762241956,-50000.0,0.00020274,2]
[315042726,1708762241965,-50000.0,0.00020274,2]
[315042727,1708762241974,-50000.0,0.00020285,2]
[315042728,1708762241983,-277.749567,0.00020285,2]
[315042729,1708762241992,-151.0,0.00020285,2]
[315042730,1708762242001,-222.913073,0.00020291,2]
[315042731,1708762242010,-363.435186,0.00020291,2]
[315042732,1708762242020,-50000.0,0.00020305,2]
[315042733,1708762242029,-50000.0,0.00020306,2]
[315042734,1708762242037,-50000.0,0.00020309,2]
[315042735,1708762242046,-50000.0,0.00020314,2]
[315042736,1708762242055,-50000.0,0.00020315,2]
[315042737,1708762242064,-50000.0,0.00020319,2]
[315042738,1708762242073,-151.0,0.00020319,2]
[315042739,1708762242082,-50000.0,0.00020323,2]
[315042740,1708762242091,-50000.0,0.00020328,2]
[315042741,1708762242100,-50000.0,0.0002033,2]
[315042742,1708762242109,-30252.95583282,0.00020341,2]
[315042744,1708762242192,-625.9,0.00020341,2]
[315042745,1708762242251,-303.20673808,0.00020341,2]
[315042747,1708762242262,-3121.37689802,0.00020341,2]
[315042749,1708762242274,-3114.27452715,0.00020341,2]
[315042761,1708762242806,-487.07,0.0001999,3]
[315042762,1708762242815,-12027.91053,0.00020341,2]
[315042763,1708762242827,-554.37547393,0.00020341,2]
[315042764,1708762242836,-1518.72639183,0.00020341,2]
[315042768,1708762245879,-26015.40244205,0.00020341,2]
[315042814,1708762351473,1161.54206118,0.00020973,30]
[315042816,1708762717620,39944.50574974,0.00018,2]
[315042817,1708762748861,8003.21621963,0.00018,2]
[315042818,1708762753475,438.745976,0.00017949,2]
[315042820,1708762857066,8439.79413871,0.00017949,2]
[315042822,1708763000119,151.53333552,0.00017859,2]
[315042823,1708763143135,7444.0543796,0.00017949,2]
[315042825,1708763323024,295.40221259,0.0001812,2]
[315042884,1708763432022,-295.40221259,0.00018244,2]
[315042886,1708763432032,-1862.10350164,0.00018245,2]
[315042887,1708763432042,-250.0,0.00018246,2]
[315042888,1708763432052,-307.122183,0.00018246,2]
[315042889,1708763432063,-691.46249535,0.00019177,2]
[315042890,1708763432072,-167.66075257,0.00019178,2]
[315042891,1708763432081,-353.52125509,0.00019178,2]
[315042892,1708763432091,-500.0,0.00019178,2]
[315042893,1708763432100,-318.8586065,0.00019178,2]
[315042894,1708763432109,-500.0,0.00019178,2]
[315042895,1708763432118,-501.16853507,0.00019178,2]
[315042896,1708763432128,-500.0,0.00019178,2]
[315042897,1708763432137,-274.36016214,0.00019178,2]
[315042957,1708763437905,-242.68983786,0.00019178,2]
[315042968,1708763438038,-152.48583566,0.00019178,2]
[315042969,1708763438053,-158.65138841,0.00019178,2]
[315042970,1708763438065,-310.16921087,0.00019178,2]
[315042971,1708763438074,-195.15697486,0.00019178,2]
[315042972,1708763438083,-500.0,0.00019178,2]
[315042973,1708763438092,-290.79465018,0.00019178,2]
[315042974,1708763438102,-500.0,0.00019178,2]
[315042975,1708763438111,-500.0,0.00019178,2]
[315042976,1708763438120,-500.0,0.00019178,2]
[315042977,1708763438131,-453.92191425,0.00019178,2]
[315042978,1708763438140,-500.0,0.00019178,2]
[315042979,1708763438149,-501.29706972,0.00019178,2]
[315042980,1708763438160,-500.0,0.00019178,2]
[315042981,1708763438170,-500.0,0.00019178,2]
[315042982,1708763438180,-251.40458686,0.00019178,2]
[315042983,1708763438192,-248.59541314,0.00019178,2]
[315042984,1708763438203,-500.0,0.00019178,2]
[315042985,1708763438213,-501.80769247,0.00019178,2]
[315042986,1708763438222,-501.74106066,0.00019178,2]
[315042987,1708763438231,-999.34,0.00019178,2]
[315042988,1708763438241,-438.21934706,0.00019178,2]
[315042989,1708763438251,-500.0,0.00019178,2]
[315042990,1708763438260,-500.0,0.00019178,2]
[315042991,1708763438269,-179.05644281,0.00019178,2]
[315042992,1708763438281,-324.65986418,0.00019178,2]
[315042993,1708763438290,-501.6271939,0.00019178,2]
[315042994,1708763438299,-500.69428777,0.00019178,2]
[315042995,1708763438308,-151.48714558,0.00019178,2]
[315042996,1708763438316,-500.0,0.00019178,2]
[315042997,1708763438325,-500.0,0.00019178,2]
[315042998,1708763438334,-500.0,0.00019178,2]
[315042999,1708763438344,-581.1653818,0.00019178,2]
[315043000,1708763438354,-560.71,0.00019178,2]
[315043001,1708763438363,-582.62545496,0.00019178,2]
[315043002,1708763438372,-191.9430881,0.00019178,2]
[315043003,1708763438385,-1559.4969119,0.00019178,2]
[315043004,1708763438394,-778.98,0.00019178,2]
[315043005,1708763438403,-500.0,0.00019178,2]
[315043006,1708763438412,-1480.04,0.00019178,2]
[315043007,1708763438421,-500.0,0.00019178,2]
[315043008,1708763438432,-500.0,0.00019178,2]
[315043009,1708763438442,-319.95595986,0.00019178,2]
[315043010,1708763438453,-500.0,0.00019178,2]
[315043011,1708763438464,-500.61188878,0.00019178,2]
[315043012,1708763438473,-500.0,0.00019178,2]
[315043013,1708763438483,-779.78,0.00019178,2]
[315043014,1708763438493,-500.74753847,0.00019178,2]
[315043015,1708763438503,-551.53581837,0.00019178,2]
[315043016,1708763438517,-501.33966473,0.00019178,2]
[315043017,1708763438527,-567.53385106,0.00019178,2]
[315043018,1708763438538,-500.0,0.00019178,2]
[315043019,1708763438547,-989.7,0.00019178,2]
[315043020,1708763438557,-688.67,0.00019178,2]
[315043021,1708763438566,-500.0,0.00019178,2]
[315043022,1708763438576,-501.06561376,0.00019178,2]
[315043023,1708763438586,-584.1010211,0.00019178,2]
[315043024,1708763438595,-8128.28,0.00019178,2]
[315043025,1708763438604,-503.38633645,0.00019178,2]
[315043026,1708763438614,-503.02160777,0.00019178,2]
[315043027,1708763438623,-501.11759681,0.00019178,2]
[315043028,1708763438634,-501.73083956,0.00019178,2]
[315043029,1708763438644,-500.0,0.00019178,2]
[315043030,1708763438653,-500.0,0.00019178,2]
[315043031,1708763438662,-4986.03,0.00019178,2]
[315043032,1708763438671,-500.0,0.00019178,2]
[315043033,1708763438680,-554.19,0.00019178,2]
[315043034,1708763438690,-1713.8,0.00019178,2]
[315043035,1708763438699,-500.0,0.00019178,2]
[315043036,1708763438709,-500.0,0.00019178,2]
[315043037,1708763438718,-500.0,0.00019178,2]
[315043038,1708763438728,-8100.7,0.00019178,2]
[315043039,1708763438737,-500.0,0.00019178,2]
[315043040,1708763438746,-752.33,0.00019178,2]
[315043041,1708763438755,-776.04,0.00019178,2]
[315043042,1708763438765,-502.33775792,0.00019178,2]
[315043043,1708763438774,-248.53773678,0.00019178,2]
[315043044,1708763438783,-3422.17,0.00019178,2]
[315043045,1708763438792,-885.4,0.00019178,2]
[315043046,1708763438802,-500.0,0.00019178,2]
[315043047,1708763438811,-3482.1,0.00019178,2]
[315043048,1708763438820,-1188.18,0.00019178,2]
[315043049,1708763438830,-1019.21,0.00019178,2]
[315043050,1708763438839,-956.33,0.00019178,2]
[315043051,1708763438848,-1821.09,0.00019178,2]
[315043052,1708763438857,-500.0,0.00019178,2]
[315043053,1708763438866,-843.39,0.00019178,2]
[315043054,1708763438876,-501.63878304,0.00019178,2]
[315043055,1708763438887,-525.45852184,0.00019178,2]
[315043056,1708763438896,-1200.61,0.00019178,2]
[315043057,1708763438905,-1322.13,0.00019178,2]
[315043058,1708763438914,-500.0,0.00019178,2]
[315043059,1708763438923,-500.0,0.00019178,2]
[315043060,1708763438933,-1184.84,0.00019178,2]
[315043061,1708763438943,-166.666666,0.00019178,2]
[315043062,1708763438954,-403.29599733,0.00019451,2]
[315043063,1708763438965,-517.05,0.00019452,2]
[315043064,1708763438974,-500.0,0.00019452,2]
[315043065,1708763438984,-500.0,0.00019452,2]
[315043066,1708763438993,-999.34,0.00019452,2]
[315043067,1708763439003,-639.13850757,0.00019452,2]
[315043068,1708763439012,-500.0,0.00019452,2]